fUST/lending_fUST_20240416
["ID","MTS","AMOUNT","RATE_DAILY","PERIOD"]
[322674871,1713208232768,-151.0,0.00031491,2]
[322674873,1713208232782,-191.570403,0.00031491,2]
[322674874,1713208232792,-870.614752,0.00031491,2]
[322674877,1713208232802,-870.614752,0.00031491,2]
[322674878,1713208232811,-870.614752,0.00031491,2]
[322674880,1713208232820,-870.614752,0.00031491,2]
[322674882,1713208232830,-1293.859791,0.00031491,2]
[322674885,1713208232839,-1293.859791,0.00031491,2]
[322674887,1713208232849,-1293.859791,0.00031491,2]
[322674889,1713208232859,-459.32066609,0.00031491,2]
[322674891,1713208232872,-834.53912491,0.00031491,2]
[322674893,1713208232884,-974.7614,0.00031491,2]
[322674895,1713208232893,-974.7614,0.00031491,2]
[322674897,1713208232903,-151.0,0.00031491,2]
[322674899,1713208232914,-151.0,0.00031491,2]
[322674901,1713208232923,-151.0,0.00031491,2]
[322674903,1713208232933,-151.0,0.00031491,2]
[322674905,1713208232943,-151.0,0.00031491,2]
[322674906,1713208232952,-151.0,0.00031491,2]
[322674907,1713208232962,-151.097466,0.00031491,2]
[322674908,1713208232972,-151.097466,0.00031491,2]
[322674909,1713208232983,-151.097466,0.00031491,2]
[322674910,1713208232993,-151.097466,0.00031491,2]
[322674912,1713208233005,-177.584879,0.00031491,2]
[322674913,1713208233015,-177.584879,0.00031491,2]
[322674915,1713208233025,-177.584879,0.00031491,2]
[322674917,1713208233036,-177.584879,0.00031491,2]
[322674919,1713208233046,-4377.605921,0.00031491,2]
[322674920,1713208233056,-3152.80277409,0.00031491,2]
[322675000,1713208237859,-1224.80314691,0.00031491,2]
[322675002,1713208237868,-4377.605921,0.00031491,2]
[322675004,1713208237878,-4377.605921,0.00031491,2]
[322675006,1713208237888,-151.0,0.00031491,2]
[322675008,1713208237898,-151.0,0.00031491,2]
[322675010,1713208237907,-151.0,0.00031491,2]
[322675012,1713208237916,-151.0,0.00031491,2]
[322675014,1713208237925,-151.0,0.00031491,2]
[322675016,1713208237934,-191.09643603,0.00032,4]
[322675018,1713208237943,-1000.0,0.00032,4]
[322675020,1713208237953,-476.30542636,0.0003235,2]
[322675022,1713208237963,-357.584143,0.00032877,2]
[322675024,1713208237972,-357.584143,0.00032877,2]
[322675026,1713208237982,-357.584143,0.00032877,2]
[322675028,1713208237991,-357.584143,0.00032877,2]
[322675030,1713208238000,-357.584143,0.00032877,2]
[322675032,1713208238009,-357.584143,0.00032877,2]
[322675034,1713208238019,-151.0,0.000329,2]
[322675036,1713208238028,-357.584143,0.000329,2]
[322675038,1713208238039,-357.584143,0.000329,2]
[322675040,1713208238047,-151.0,0.000329,2]
[322675041,1713208238056,-151.0,0.000329,2]
[322675044,1713208238066,-870.614752,0.000329,2]
[322675046,1713208238075,-870.614752,0.000329,2]
[322675047,1713208238084,-1293.859791,0.000329,2]
[322675049,1713208238093,-1293.859791,0.000329,2]
[322675051,1713208238102,-151.0,0.000329,2]
[322675054,1713208238112,-151.0,0.000329,2]
[322675056,1713208238121,-234.952144,0.000329,2]
[322675058,1713208238130,-151.0,0.000329,2]
[322675059,1713208238142,-151.0,0.000329,2]
[322675060,1713208238151,-151.097466,0.000329,2]
[322675061,1713208238160,-151.097466,0.000329,2]
[322675062,1713208238168,-151.097466,0.000329,2]
[322675063,1713208238177,-151.09747,0.000329,2]
[322675064,1713208238186,-177.584879,0.000329,2]
[322675065,1713208238195,-177.584879,0.000329,2]
[322675066,1713208238204,-177.584879,0.000329,2]
[322675067,1713208238213,-177.584874,0.000329,2]
[322675068,1713208238222,-4377.605921,0.000329,2]
[322675069,1713208238231,-4377.605921,0.000329,2]
[322675070,1713208238242,-4377.605921,0.000329,2]
[322675071,1713208238250,-4377.605925,0.000329,2]
[322675072,1713208238260,-151.0,0.000329,2]
[322675073,1713208238269,-255.843416,0.000329,2]
[322675074,1713208238279,-545.64866486,0.000329,2]
[322675075,1713208238288,-193.795235,0.00033165,2]
[322675076,1713208238297,-136024.20396359,0.000333,2]
[322675257,1713208240079,-3156.09956535,0.000333,2]
[322675278,1713208240340,-9119.91107778,0.000333,2]
[322675557,1713208243171,-557.04302453,0.000333,2]
[322675658,1713208246003,-312.5,0.0003,2]
[322675707,1713209351120,-154.79876161,0.00024967,2]
[322675708,1713209351140,-154.79876161,0.00024968,2]
[322675709,1713209351164,-783.63141595,0.00024968,2]
[322675710,1713209351185,-154.79876161,0.00024969,2]
[322675711,1713209351207,-1000.0,0.00024969,2]
[322675712,1713209351229,-2007.62821039,0.00024969,2]
[322675713,1713209351251,-300.0,0.00024969,2]
[322675714,1713209351271,-300.0,0.00024969,2]
[322675715,1713209351292,-14097.29508883,0.00024969,2]
[322675716,1713209356110,-8680.53718882,0.00024969,2]
[322675717,1713209356131,-216.09314923,0.0002497,2]
[322675718,1713209356152,-953.73793423,0.0002497,2]
[322675719,1713209356175,-154.79876161,0.0002497,2]
[322675720,1713209356195,-806.77876611,0.00024971,2]
[322675721,1713209374145,-154.79876161,0.00024967,2]
[322675722,1713209374165,-882.33479028,0.00024967,2]
[322675723,1713209374188,-640.72014459,0.00024968,2]
[322675724,1713209374209,-154.79876161,0.0002497,2]
[322675725,1713209374229,-1776.96868537,0.00024971,2]
[322675726,1713209374250,-1101.23471799,0.0002499,2]
[322675727,1713209374269,-307.98200501,0.00025,2]
[322675728,1713209374289,-420.0,0.00027051,2]
[322675729,1713209374309,-305.41076381,0.00027246,3]
[322675730,1713209374329,-769.05677609,0.00027315,2]
[322675731,1713209374350,-154.79876161,0.00027342,2]
[322675732,1713209374372,-154.79876161,0.00027342,2]
[322675733,1713209374392,-216.09314923,0.00027342,2]
[322675734,1713209374412,-1000.0,0.00027342,2]
[322675735,1713209374434,-327.13219971,0.00027342,2]
[322675736,1713209374453,-155.15459774,0.00027343,2]
[322675737,1713209374474,-255.10807896,0.00027343,2]
[322675738,1713209374637,-2007.62821039,0.00027343,2]
[322675739,1713209374659,-3173.73315439,0.00027343,2]
[322675740,1713209374682,-59063.66666477,0.00027344,2]
[322675741,1713209374702,-2023.39028161,0.00027345,2]
[322675742,1713209374724,-1817.68357316,0.00027348,2]
[322675743,1713209374745,-168.661617,0.0002737,2]
[322675744,1713209374767,-419.164077,0.00027397,2]
[322675745,1713209374788,-420.0,0.00027466,2]
[322675746,1713209374809,-11450.0991253,0.00027548,2]
[322675747,1713209374828,-171.816223,0.00027661,2]
[322675748,1713209374849,-250.0,0.00028139,2]
[322675749,1713209374870,-171.816223,0.00028918,2]
[322675750,1713209374916,-614.0315779,0.00029013,2]
[322675751,1713209374941,-587.0,0.00029306,2]
[322675752,1713209374964,-456.55558,0.00029364,2]
[322675753,1713209374989,-614.03157789,0.00029817,2]
[322675754,1713209375011,-279.02852297,0.00029998,2]
[322675755,1713209375034,-470.72269089,0.00029998,2]
[322675756,1713209375053,-1088.76018233,0.00029998,2]
[322675757,1713209375076,-163.91782719,0.00029998,2]
[322675758,1713209375099,-161.77699218,0.00029998,2]
[322675759,1713209375123,-187.23975877,0.00029999,2]
[322675760,1713209375144,-346.66789349,0.0003,4]
[322675783,1713209432005,-739.305047,0.00023994,2]
[322675784,1713209432014,-6918.04086757,0.00025446,2]
[322675785,1713209432023,-519.0311523,0.00025447,2]
[322675786,1713209432032,-519.0311523,0.00025447,2]
[322675787,1713209432042,-2460.65368732,0.00025448,2]
[322675788,1713209432052,-300.0,0.00029997,2]
[322675789,1713209432064,-300.0,0.00029997,2]
[322675790,1713209432073,-183.53728373,0.00029998,2]
[322675792,1713209432082,-2007.62821039,0.00029998,2]
[322675794,1713209432092,-154.79876161,0.00029998,2]
[322675796,1713209432101,-640.72014459,0.00029998,2]
[322675798,1713209432110,-647.49568008,0.00029998,2]
[322675799,1713209432120,-882.33479028,0.00029998,2]
[322675800,1713209432129,-154.79876161,0.00029998,2]
[322675801,1713209432140,-154.79876161,0.00029999,2]
[322675802,1713209432150,-344.03429269,0.00029999,2]
[322675803,1713209432159,-6782.00392295,0.0003,4]
[322675804,1713209432169,-581.4265577,0.0003,4]
[322675805,1713209432178,-39350.82622374,0.0003,30]
[322675806,1713209432189,-1509.46369163,0.0003,30]
[322675864,1713209438260,-3260.01659319,0.0003,30]
[322676305,1713209443374,-0.00303981,0.0003,30]
[322676375,1713210433115,-283.81908513,0.00024996,2]
[322676376,1713210439089,-338.86518899,0.00024996,2]
[322676377,1713210439108,-35.38839601,0.00024997,2]
[322676378,1713210439157,-430.15435437,0.00024997,2]
[322676379,1713210439178,-880.8735514,0.00024997,2]
[322676380,1713210439197,-185.88478385,0.00024997,2]
[322676381,1713210439217,-156.87945876,0.00025,2]
[322676382,1713210439239,-300.0,0.000259,2]
[322676383,1713210439257,-300.0,0.000259,2]
[322676384,1713210439276,-844.7745796,0.00025901,2]
[322676385,1713210439295,-175.299891,0.00026767,2]
[322676386,1713210439314,-202.24196808,0.00026923,2]
[322676387,1713210439333,-5204.42860176,0.00026927,2]
[322676388,1713210551164,-156.87945876,0.00025,2]
[322676389,1713210551184,-880.8735514,0.00025929,2]
[322676390,1713210551203,-2007.62821039,0.0002593,2]
[322676391,1713210551224,-744.97916,0.00025931,2]
[322676392,1713210551244,-328.53559564,0.00026834,3]
[322676393,1713210551263,-154.76784823,0.00026928,2]
[322676394,1713210551283,-154.76784823,0.00026929,2]
[322676395,1713210551306,-154.76784823,0.00026929,2]
[322676396,1713210551326,-300.0,0.0002693,2]
[322676397,1713210551346,-300.0,0.0002693,2]
[322676398,1713210551365,-22777.83227765,0.00026931,2]
[322676399,1713210551388,-186.00172497,0.00026932,2]
[322676400,1713210551407,-159.94654956,0.00026932,2]
[322676401,1713210551426,-213.745025,0.00026933,2]
[322676402,1713210551446,-24900.0,0.00026934,2]
[322676403,1713210551466,-173.981163,0.00027397,2]
[322676404,1713210551484,-164.744879,0.00027397,2]
[322676405,1713210551504,-166.666666,0.00027397,2]
[322676406,1713210551524,-174.415711,0.00027397,2]
[322676407,1713210551545,-1761.6658009,0.000279,2]
[322676408,1713210551567,-166.666666,0.00028038,2]
[322676409,1713210551587,-166.666666,0.00028679,2]
[322676410,1713210551606,-167.890309,0.00028712,2]
[322676411,1713210551627,-323.61289454,0.00028997,2]
[322676412,1713210551646,-2061.41051823,0.00028997,2]
[322676413,1713210551665,-795.30540044,0.00028997,2]
[322676414,1713210567084,-1460.03145343,0.00028997,2]
[322676415,1713210567105,-5575.62419768,0.00028997,2]
[322676416,1713210567124,-5791.45874465,0.00028997,2]
[322676417,1713210567144,-327.06473728,0.00028998,2]
[322676418,1713210567164,-581.08592655,0.00028998,2]
[322676419,1713210567184,-328.5355956,0.00029013,4]
[322676420,1713210567206,-420.0,0.00029116,2]
[322676421,1713210567226,-166.666666,0.00029321,2]
[322676422,1713210567246,-420.0,0.00029623,2]
[322676423,1713210567266,-430.6700549,0.000299,2]
[322676450,1713210632194,-1356.32675555,0.00026897,2]
[322676451,1713210632203,-2007.62821039,0.00028998,2]
[322676452,1713210632212,-24900.0,0.00028999,2]
[322676453,1713210632222,-391.23487578,0.000299,2]
[322676454,1713210632231,-166.666666,0.00029962,2]
[322676455,1713210632240,-300.0,0.00029997,2]
[322676456,1713210632249,-300.0,0.00029997,2]
[322676457,1713210632258,-500.0,0.00029998,2]
[322676458,1713210632267,-154.78330338,0.00029998,2]
[322676459,1713210632278,-932.48512514,0.00029998,2]
[322676460,1713210632287,-951.67505643,0.00029999,2]
[322676461,1713210632298,-155.42342081,0.00029999,2]
[322676462,1713210632307,-3476.10858706,0.00029999,2]
[322676463,1713210632317,-30560.89792013,0.0003,30]
[322676464,1713210632326,-160.0,0.0003,2]
[322676465,1713210632336,-11613.85914445,0.0003,4]
[322676467,1713210632347,-4877.14701367,0.0003,5]
[322676469,1713210632359,-155.13605278,0.0003,4]
[322676470,1713210632369,-200.0,0.0003,2]
[322676471,1713210632379,-155.09201868,0.0003,4]
[322676472,1713210632391,-163.0,0.0003,2]
[322676474,1713210632403,-382.0,0.0003,2]
[322676476,1713210632413,-821.90493066,0.00030071,2]
[322676478,1713210632423,-546.61486938,0.00030134,4]
[322676480,1713210632435,-545.03801256,0.00030134,2]
[322676481,1713210632445,-159.6343805,0.00030135,4]
[322676482,1713210632456,-500.0,0.00030136,2]
[322676483,1713210632466,-300.0,0.00030136,2]
[322676484,1713210632476,-567.12535001,0.00030136,2]
[322676485,1713210632487,-500.0,0.00030136,2]
[322676486,1713210632497,-315.3253063,0.00030136,2]
[322676487,1713210632507,-500.0,0.00030136,2]
[322676488,1713210632518,-500.0,0.00030136,2]
[322676489,1713210632528,-615.25291108,0.00030136,2]
[322676490,1713210632539,-502.2059746,0.00030136,2]
[322676491,1713210632550,-500.0,0.00030136,2]
[322676492,1713210632561,-500.0,0.00030136,2]
[322676493,1713210632572,-501.06899842,0.00030136,2]
[322676494,1713210632582,-500.90292457,0.00030136,2]
[322676495,1713210632593,-500.0,0.00030136,2]
[322676496,1713210632602,-1874.9,0.00030136,2]
[322676497,1713210632621,-500.0,0.00030136,2]
[322676498,1713210632632,-500.0,0.00030136,2]
[322676499,1713210632642,-500.0,0.00030136,2]
[322676500,1713210632652,-200.56078508,0.00030136,2]
[322676501,1713210632662,-500.0,0.00030136,2]
[322676502,1713210632673,-500.0,0.00030136,2]
[322676503,1713210632683,-500.34633543,0.00030136,2]
[322676504,1713210632692,-500.0,0.00030136,2]
[322676505,1713210632702,-500.0,0.00030136,2]
[322676506,1713210632712,-500.0,0.00030136,2]
[322676507,1713210632722,-540.95760803,0.00030136,2]
[322676508,1713210632732,-500.0,0.00030136,2]
[322676509,1713210632742,-500.0,0.00030136,2]
[322676510,1713210632751,-631.77117605,0.00030136,2]
[322676511,1713210632762,-501.37249857,0.00030136,2]
[322676512,1713210632772,-500.44211465,0.00030136,2]
[322676513,1713210632781,-503.30030449,0.00030136,2]
[322676514,1713210632791,-500.0,0.00030136,2]
[322676515,1713210632801,-247.08671596,0.00030136,2]
[322676516,1713210632810,-182.30918949,0.00030136,2]
[322676517,1713210632819,-503.84800836,0.00030136,14]
[322676518,1713210632829,-500.0,0.00030136,2]
[322676519,1713210632838,-179.92888977,0.00030136,2]
[322676520,1713210632848,-500.0,0.00030136,2]
[322676521,1713210632866,-500.0,0.00030136,2]
[322676522,1713210632876,-500.0,0.00030136,2]
[322676523,1713210632886,-500.0,0.00030136,2]
[322676524,1713210632896,-500.0,0.00030136,2]
[322676525,1713210632906,-500.0,0.00030136,2]
[322676526,1713210632916,-500.0,0.00030136,2]
[322676527,1713210632926,-500.0,0.00030136,2]
[322676528,1713210632935,-510.83351956,0.00030136,2]
[322676529,1713210632946,-500.0,0.00030136,2]
[322676531,1713210632958,-2426.11,0.00030136,2]
[322676532,1713210632969,-624.01313666,0.00030136,2]
[322676533,1713210632979,-500.0,0.00030136,2]
[322676534,1713210632989,-500.0,0.00030136,2]
[322676535,1713210633000,-500.0,0.00030136,2]
[322676536,1713210633011,-151.0,0.00030136,2]
[322676537,1713210633021,-500.0,0.00030136,2]
[322676538,1713210633031,-500.0,0.00030136,2]
[322676540,1713210633042,-461.11073422,0.00030136,2]
[322676542,1713210633053,-500.0,0.00030136,2]
[322676544,1713210633064,-500.0,0.00030136,2]
[322676546,1713210633073,-515.43455269,0.00030136,2]
[322676548,1713210633083,-500.0,0.00030136,2]
[322676550,1713210633092,-500.0,0.00030136,2]
[322676552,1713210633102,-500.0,0.00030136,2]
[322676554,1713210633123,-500.0,0.00030136,2]
[322676556,1713210633133,-500.0,0.00030136,2]
[322676558,1713210633142,-500.0,0.00030136,2]
[322676560,1713210633154,-500.0,0.00030136,2]
[322676562,1713210633164,-500.0,0.00030136,2]
[322676564,1713210633174,-151.0,0.00030136,2]
[322676566,1713210633184,-151.0,0.00030136,2]
[322676568,1713210633194,-347.49450367,0.00030136,2]
[322676570,1713210633204,-500.0,0.00030136,2]
[322676572,1713210633214,-260.43191565,0.00030136,2]
[322676574,1713210633225,-500.0,0.00030136,2]
[322676576,1713210633235,-160.48721337,0.00030136,2]
[322676578,1713210633245,-500.0,0.00030136,2]
[322676580,1713210633255,-500.0,0.00030136,2]
[322676582,1713210633265,-500.0,0.00030136,2]
[322676584,1713210633275,-829.44,0.00030136,2]
[322676586,1713210633285,-151.0,0.00030136,2]
[322676588,1713210633294,-151.0,0.00030136,2]
[322676590,1713210633303,-500.0,0.00030136,2]
[322676592,1713210633313,-500.0,0.00030136,2]
[322676594,1713210633322,-517.31903872,0.00030136,2]
[322676596,1713210633331,-500.0,0.00030136,2]
[322676598,1713210633340,-541.60146977,0.00030136,2]
[322676600,1713210633349,-500.0,0.00030136,2]
[322676602,1713210633364,-500.0,0.00030136,2]
[322676604,1713210633373,-500.0,0.00030136,2]
[322676606,1713210633383,-500.0,0.00030136,2]
[322676608,1713210633394,-669.84,0.00030136,2]
[322676611,1713210633405,-1705.97,0.00030136,2]
[322676613,1713210633417,-500.0,0.00030136,2]
[322676614,1713210633428,-511.52574006,0.00030136,2]
[322676617,1713210633440,-500.0,0.00030136,2]
[322676619,1713210633451,-500.0,0.00030136,2]
[322676620,1713210633462,-503.84100235,0.00030136,2]
[322676622,1713210633473,-533.84,0.00030136,2]
[322676625,1713210633483,-500.0,0.00030136,2]
[322676626,1713210633492,-151.0,0.00030136,2]
[322676628,1713210633501,-500.0,0.00030136,2]
[322676630,1713210633511,-500.0,0.00030136,2]
[322676632,1713210633520,-500.0,0.00030136,2]
[322676635,1713210633650,-500.0,0.00030136,2]
[322676636,1713210633660,-500.0,0.00030136,2]
[322676637,1713210633669,-1849.07,0.00030136,2]
[322676638,1713210633678,-500.0,0.00030136,2]
[322676639,1713210633687,-500.0,0.00030136,2]
[322676640,1713210633696,-500.0,0.00030136,2]
[322676641,1713210633705,-504.96681818,0.00030136,2]
[322676642,1713210633714,-500.0,0.00030136,2]
[322676643,1713210633723,-500.0,0.00030136,2]
[322676644,1713210633732,-500.0,0.00030136,2]
[322676645,1713210633741,-500.0,0.00030136,2]
[322676646,1713210633750,-579.93,0.00030136,2]
[322676647,1713210633759,-500.0,0.00030136,2]
[322676648,1713210633768,-543.47,0.00030136,2]
[322676649,1713210633777,-500.0,0.00030136,2]
[322676650,1713210633787,-1015.7,0.00030136,2]
[322676651,1713210633796,-500.0,0.00030136,2]
[322676652,1713210633805,-504.5621804,0.00030136,2]
[322676653,1713210633814,-500.0,0.00030136,2]
[322676654,1713210633823,-500.0,0.00030136,2]
[322676655,1713210633832,-521.28866419,0.00030136,2]
[322676656,1713210633841,-500.0,0.00030136,2]
[322676657,1713210633850,-559.823048,0.00030136,2]
[322676659,1713210633866,-220.70634571,0.00030136,2]
[322676660,1713210633875,-559.823048,0.00030136,2]
[322676661,1713210633884,-500.0,0.00030136,2]
[322676662,1713210633893,-500.0,0.00030136,2]
[322676663,1713210633902,-500.0,0.00030136,2]
[322676665,1713210633911,-2053.14,0.00030136,2]
[322676667,1713210633921,-151.0,0.00030136,2]
[322676669,1713210633931,-500.0,0.00030136,2]
[322676671,1713210633943,-500.0,0.00030136,2]
[322676673,1713210633952,-500.0,0.00030136,2]
[322676675,1713210633962,-500.0,0.00030136,2]
[322676677,1713210633971,-680.06,0.00030136,2]
[322676679,1713210633980,-500.0,0.00030136,2]
[322676681,1713210633990,-543.31,0.00030136,2]
[322676683,1713210633999,-536.48,0.00030136,2]
[322676685,1713210634008,-500.0,0.00030136,2]
[322676687,1713210634017,-500.0,0.00030136,2]
[322676689,1713210634027,-500.29622081,0.00030136,2]
[322676691,1713210634036,-500.0,0.00030136,2]
[322676693,1713210634045,-500.0,0.00030136,2]
[322676695,1713210634054,-500.0,0.00030136,2]
[322676697,1713210634064,-500.0,0.00030136,2]
[322676699,1713210634073,-500.0,0.00030136,2]
[322676701,1713210634082,-500.0,0.00030136,2]
[322676703,1713210634091,-500.0,0.00030136,2]
[322676705,1713210634101,-1262.09,0.00030136,2]
[322676707,1713210634114,-503.3,0.00030136,2]
[322676709,1713210634123,-500.0,0.00030136,2]
[322676711,1713210634131,-500.0,0.00030136,2]
[322676713,1713210634140,-1000.0,0.00030136,2]
[322676715,1713210634149,-500.0,0.00030136,2]
[322676717,1713210634158,-977.3,0.00030136,2]
[322676719,1713210634167,-500.0,0.00030136,2]
[322676721,1713210634176,-151.0,0.00030136,2]
[322676723,1713210634185,-151.0,0.00030136,2]
[322676725,1713210634194,-500.0,0.00030136,2]
[322676727,1713210634203,-699.19,0.00030136,2]
[322676729,1713210634212,-500.0,0.00030136,2]
[322676731,1713210634221,-500.0,0.00030136,2]
[322676733,1713210634230,-500.0,0.00030136,2]
[322676735,1713210634239,-777.12,0.00030136,2]
[322676737,1713210634248,-500.0,0.00030136,2]
[322676739,1713210634257,-500.0,0.00030136,2]
[322676741,1713210634267,-500.0,0.00030136,2]
[322676743,1713210634276,-500.0,0.00030136,2]
[322676745,1713210634285,-500.0,0.00030136,2]
[322676747,1713210634294,-638.73076859,0.00030136,2]
[322676749,1713210634303,-500.0,0.00030136,2]
[322676751,1713210634312,-500.0,0.00030136,2]
[322676753,1713210634321,-2743.57,0.00030136,2]
[322676754,1713210634330,-500.0,0.00030136,2]
[322676756,1713210634339,-500.0,0.00030136,2]
[322676758,1713210634349,-500.0,0.00030136,2]
[322676761,1713210634362,-500.0,0.00030136,2]
[322676763,1713210634371,-500.0,0.00030136,2]
[322676765,1713210634381,-176.22142461,0.00030136,2]
[322676767,1713210634391,-500.0,0.00030136,2]
[322676768,1713210634403,-500.0,0.00030136,2]
[322676771,1713210634412,-500.0,0.00030136,2]
[322676773,1713210634422,-526.8,0.00030136,2]
[322676775,1713210634431,-500.0,0.00030136,2]
[322676777,1713210634443,-954.89,0.00030136,2]
[322676779,1713210634461,-730.22,0.00030136,2]
[322676780,1713210634474,-500.0,0.00030136,2]
[322676782,1713210634489,-261.222143,0.00030136,2]
[322676784,1713210634498,-500.0,0.00030136,2]
[322676787,1713210634507,-261.222143,0.00030136,2]
[322676789,1713210634516,-8008.78,0.00030136,2]
[322676790,1713210634526,-261.222143,0.00030136,2]
[322676792,1713210634535,-534.45033612,0.00030136,2]
[322676795,1713210634545,-261.222143,0.00030136,2]
[322676796,1713210634555,-261.222143,0.00030136,2]
[322676798,1713210634566,-659.820894,0.00030136,2]
[322676800,1713210634575,-261.222143,0.00030136,2]
[322676802,1713210634586,-659.820894,0.00030136,2]
[322676804,1713210634595,-659.820894,0.00030136,2]
[322676806,1713210634609,-500.0,0.00030136,2]
[322676808,1713210634620,-659.820894,0.00030136,2]
[322676810,1713210634629,-659.820894,0.00030136,2]
[322676813,1713210634639,-659.820894,0.00030136,2]
[322676815,1713210634649,-500.0,0.00030136,2]
[322676817,1713210634658,-618.29175402,0.00030136,2]
[322676818,1713210634667,-500.0,0.00030136,2]
[322676820,1713210634676,-609.59,0.00030136,2]
[322676822,1713210634687,-1980.19,0.00030136,2]
[322676824,1713210634696,-1308.92,0.00030136,2]
[322676826,1713210634706,-500.0,0.00030136,2]
[322676828,1713210634715,-500.0,0.00030136,2]
[322676830,1713210634724,-500.0,0.00030136,2]
[322676832,1713210634734,-500.0,0.00030136,2]
[322676834,1713210634743,-500.0,0.00030136,2]
[322676836,1713210634753,-1168.73,0.00030136,2]
[322676838,1713210634762,-500.0,0.00030136,2]
[322676840,1713210634772,-500.0,0.00030136,2]
[322676842,1713210634781,-500.0,0.00030136,2]
[322676844,1713210634791,-503.32523261,0.00030136,2]
[322676846,1713210634801,-1394.612693,0.00030136,2]
[322676848,1713210634812,-1394.612693,0.00030136,2]
[322676850,1713210634821,-1394.612693,0.00030136,2]
[322676851,1713210634830,-538.22322364,0.00030136,2]
[322676852,1713210634839,-500.0,0.00030136,2]
[322676853,1713210634849,-500.0,0.00030136,2]
[322676854,1713210634862,-1394.612693,0.00030136,2]
[322676855,1713210634872,-1394.612693,0.00030136,2]
[322676856,1713210634882,-500.0,0.00030136,2]
[322676857,1713210634891,-1394.612693,0.00030136,2]
[322676858,1713210634900,-500.0,0.00030136,2]
[322676859,1713210634909,-500.0,0.00030136,2]
[322676860,1713210634919,-500.0,0.00030136,2]
[322676861,1713210634935,-500.0,0.00030136,2]
[322676862,1713210634953,-674.95,0.00030136,2]
[322676864,1713210634964,-500.0,0.00030136,2]
[322676865,1713210634974,-585.35500815,0.00030136,2]
[322676866,1713210634985,-500.0,0.00030136,2]
[322676867,1713210634995,-500.0,0.00030136,2]
[322676868,1713210635005,-505.16619145,0.00030136,2]
[322676869,1713210635016,-959.941174,0.00030136,2]
[322676870,1713210635026,-959.941174,0.00030136,2]
[322676871,1713210635036,-959.941174,0.00030136,2]
[322676872,1713210635047,-959.941174,0.00030136,2]
[322676873,1713210635057,-959.941174,0.00030136,2]
[322676874,1713210635068,-500.0,0.00030136,2]
[322676875,1713210635078,-959.941174,0.00030136,2]
[322676876,1713210635090,-682.28,0.00030136,2]
[322676877,1713210635100,-500.0,0.00030136,2]
[322676878,1713210635113,-500.0,0.00030136,2]
[322676879,1713210635122,-500.0,0.00030136,2]
[322676880,1713210635133,-500.0,0.00030136,2]
[322676881,1713210635144,-531.8392121,0.00030136,2]
[322676882,1713210635155,-500.0,0.00030136,2]
[322676883,1713210635165,-500.0,0.00030136,2]
[322676884,1713210635175,-507.36829806,0.00030136,2]
[322676885,1713210635186,-151.0,0.00030136,2]
[322676886,1713210635196,-151.0,0.00030136,2]
[322676887,1713210635207,-151.0,0.00030136,2]
[322676888,1713210635218,-500.0,0.00030136,2]
[322676889,1713210635228,-500.0,0.00030136,2]
[322676890,1713210635238,-500.0,0.00030136,2]
[322676891,1713210635248,-151.0,0.00030136,2]
[322676892,1713210635258,-151.0,0.00030136,2]
[322676893,1713210635268,-151.0,0.00030136,2]
[322676894,1713210635278,-621.02835294,0.00030136,2]